[Event "*** SCC Grand Prix: Titled Tuesday Blitz"]
[Site "Chess.com"]
[Date "2020.06.09"]
[Round "3"]
[White "MirMan90"]
[Black "Sychev_Klementy"]
[Result "1-0"]
[WhiteElo "2662"]
[BlackElo "2851"]
[TimeControl "180+1"]
[EndTime "9:29:00 PDT"]
[Termination "MirMan90 won on time"]

1. e4 {[%clk 0:03:00.9]} 1... e5 {[%clk 0:02:59.3]} 2. Nf3 {[%clk 0:03:01]} 2...
Nc6 {[%clk 0:02:58.1]} 3. Bb5 {[%clk 0:03:01.1]} 3... a6 {[%clk 0:02:58.1]} 4.
Ba4 {[%clk 0:03:01.4]} 4... b5 {[%clk 0:02:58.1]} 5. Bb3 {[%clk 0:03:00.8]} 5...
Na5 {[%clk 0:02:58.7]} 6. O-O {[%clk 0:02:56.5]} 6... d6 {[%clk 0:02:58.4]} 7.
d4 {[%clk 0:02:49]} 7... exd4 {[%clk 0:02:58.4]} 8. Nxd4 {[%clk 0:02:47.1]} 8...
Bb7 {[%clk 0:02:58.5]} 9. Re1 {[%clk 0:02:35.6]} 9... c5 {[%clk 0:02:57.1]} 10.
Bd5 {[%clk 0:02:35.3]} 10... cxd4 {[%clk 0:02:53.3]} 11. c3 {[%clk 0:02:28.8]}
11... d3 {[%clk 0:02:35]} 12. Qxd3 {[%clk 0:02:25.2]} 12... Nf6 {[%clk 0:02:33]}
13. a4 {[%clk 0:02:18.3]} 13... Qd7 {[%clk 0:01:03.1]} 14. Bg5 {[%clk 0:02:06]}
14... Be7 {[%clk 0:01:01.6]} 15. Bxb7 {[%clk 0:01:59.4]} 15... Qxb7 {[%clk
0:00:54.1]} 16. axb5 {[%clk 0:01:54.6]} 16... axb5 {[%clk 0:00:47.7]} 17. e5
{[%clk 0:01:49.5]} 17... dxe5 {[%clk 0:00:45.9]} 18. Rxe5 {[%clk 0:01:49.5]}
18... O-O {[%clk 0:00:29.9]} 19. Rxb5 {[%clk 0:01:42.1]} 19... Rad8 {[%clk
0:00:24.6]} 20. Qf1 {[%clk 0:01:26.5]} 20... Qxb5 {[%clk 0:00:23.1]} 21. Qxb5
{[%clk 0:01:26.6]} 21... Rd1+ {[%clk 0:00:23.1]} 22. Qf1 {[%clk 0:01:27.3]}
22... Rxf1+ {[%clk 0:00:22.7]} 23. Kxf1 {[%clk 0:01:28.2]} 23... Nc4 {[%clk
0:00:21.8]} 24. b3 {[%clk 0:01:25.6]} 24... Nd6 {[%clk 0:00:20.2]} 25. Ra7
{[%clk 0:01:23.9]} 25... Re8 {[%clk 0:00:18.3]} 26. f3 {[%clk 0:01:19.8]} 26...
Nd5 {[%clk 0:00:17]} 27. Bxe7 {[%clk 0:01:18.7]} 27... Rxe7 {[%clk 0:00:15]} 28.
Ra6 {[%clk 0:01:15.9]} 28... Ne8 {[%clk 0:00:12.1]} 29. b4 {[%clk 0:01:13.9]}
29... Rc7 {[%clk 0:00:10.5]} 30. Ra3 {[%clk 0:01:09.5]} 30... Kf8 {[%clk
0:00:09.9]} 31. Ke2 {[%clk 0:01:09]} 31... Nd6 {[%clk 0:00:09.8]} 32. Kd3 {[%clk
0:01:08.5]} 32... Nf4+ {[%clk 0:00:09.6]} 33. Kc2 {[%clk 0:01:06.2]} 33... Nxg2
{[%clk 0:00:09.3]} 34. Nd2 {[%clk 0:01:06]} 34... Nb5 {[%clk 0:00:06.6]} 35.
Ra8+ {[%clk 0:01:03.2]} 35... Ke7 {[%clk 0:00:06.8]} 36. c4 {[%clk 0:01:03.7]}
36... Nd4+ {[%clk 0:00:06.6]} 37. Kd3 {[%clk 0:01:03.1]} 37... Nc6 {[%clk
0:00:06.8]} 38. b5 {[%clk 0:01:02.2]} 38... Ne5+ {[%clk 0:00:07.2]} 39. Kd4
{[%clk 0:01:00.4]} 39... f6 {[%clk 0:00:07.3]} 40. c5 {[%clk 0:00:55.2]} 40...
Nf4 {[%clk 0:00:05.6]} 41. Ne4 {[%clk 0:00:49.2]} 41... Ne6+ {[%clk 0:00:05.5]}
42. Kd5 {[%clk 0:00:47.8]} 42... Rd7+ {[%clk 0:00:05.5]} 43. Nd6 {[%clk
0:00:48.1]} 43... Nc7+ {[%clk 0:00:03.8]} 44. Ke4 {[%clk 0:00:44]} 44... g6
{[%clk 0:00:03.8]} 45. Rh8 {[%clk 0:00:41.5]} 45... Ke6 {[%clk 0:00:01.1]} 46.
b6 {[%clk 0:00:41.7]} 1-0

[Event "*** SCC Grand Prix: Titled Tuesday Blitz"]
[Site "Chess.com"]
[Date "2020.06.09"]
[Round "3"]
[White "politeplayer"]
[Black "MomchilPetkov"]
[Result "0-1"]
[WhiteElo "2282"]
[BlackElo "2539"]
[TimeControl "180+1"]
[EndTime "9:29:00 PDT"]
[Termination "MomchilPetkov won on time"]

1. e4 {[%clk 0:03:00.9]} 1... c5 {[%clk 0:02:59.1]} 2. d4 {[%clk 0:03:00.1]}
2... cxd4 {[%clk 0:02:58.8]} 3. c3 {[%clk 0:03:00.6]} 3... a6 {[%clk 0:02:58.7]}
4. cxd4 {[%clk 0:02:59.2]} 4... d5 {[%clk 0:02:58.7]} 5. exd5 {[%clk 0:02:58.8]}
5... Nf6 {[%clk 0:02:58.7]} 6. Nc3 {[%clk 0:02:55.8]} 6... Nxd5 {[%clk
0:02:58.5]} 7. Nxd5 {[%clk 0:02:51.9]} 7... Qxd5 {[%clk 0:02:58]} 8. Nf3 {[%clk
0:02:42.7]} 8... Nc6 {[%clk 0:02:56.6]} 9. Be2 {[%clk 0:02:21.3]} 9... Bg4
{[%clk 0:02:50.2]} 10. O-O {[%clk 0:02:20.4]} 10... e6 {[%clk 0:02:50.5]} 11. h3
{[%clk 0:02:19.6]} 11... Bh5 {[%clk 0:02:47.4]} 12. Be3 {[%clk 0:02:19.1]} 12...
Be7 {[%clk 0:02:45.4]} 13. Qd2 {[%clk 0:01:47.9]} 13... O-O {[%clk 0:02:40.4]}
14. Rfd1 {[%clk 0:01:48.4]} 14... Rac8 {[%clk 0:02:28.2]} 15. a3 {[%clk
0:01:44.9]} 15... Na5 {[%clk 0:02:15.7]} 16. Rab1 {[%clk 0:01:25.4]} 16... Nb3
{[%clk 0:02:09.3]} 17. Qe1 {[%clk 0:01:25.3]} 17... Bg6 {[%clk 0:02:04.2]} 18.
Bd3 {[%clk 0:01:24.1]} 18... Bxd3 {[%clk 0:02:02.6]} 19. Rxd3 {[%clk 0:01:23.7]}
19... Nc5 {[%clk 0:02:02.1]} 20. Rc3 {[%clk 0:01:16.6]} 20... Nd7 {[%clk
0:01:26.4]} 21. Rbc1 {[%clk 0:01:06.1]} 21... Rxc3 {[%clk 0:01:23.3]} 22. Qxc3
{[%clk 0:01:05.9]} 22... Nb8 {[%clk 0:01:17.8]} 23. Ne5 {[%clk 0:01:01.9]} 23...
Bd6 {[%clk 0:01:14.5]} 24. Nc4 {[%clk 0:00:38.1]} 24... Nc6 {[%clk 0:00:51.9]}
25. Nxd6 {[%clk 0:00:33.7]} 25... Qxd6 {[%clk 0:00:51.6]} 26. Rd1 {[%clk
0:00:26.9]} 26... Rd8 {[%clk 0:00:50]} 27. g3 {[%clk 0:00:23.2]} 27... Qd5
{[%clk 0:00:49.5]} 28. b4 {[%clk 0:00:15.4]} 28... h5 {[%clk 0:00:47.5]} 29. h4
{[%clk 0:00:14.8]} 29... Qf3 {[%clk 0:00:41.5]} 30. Rc1 {[%clk 0:00:12.7]} 30...
Rd5 {[%clk 0:00:40.6]} 31. Qd2 {[%clk 0:00:10.6]} 31... e5 {[%clk 0:00:34]} 32.
Rc5 {[%clk 0:00:08.3]} 32... exd4 {[%clk 0:00:32.6]} 33. Rxd5 {[%clk 0:00:08.3]}
33... Qxd5 {[%clk 0:00:30.9]} 34. Bf4 {[%clk 0:00:08.6]} 34... Qe4 {[%clk
0:00:29]} 35. Bg5 {[%clk 0:00:07.8]} 35... f6 {[%clk 0:00:27.9]} 36. Bf4 {[%clk
0:00:07]} 36... Kh7 {[%clk 0:00:28.1]} 37. a4 {[%clk 0:00:07.2]} 37... b5 {[%clk
0:00:24.9]} 38. axb5 {[%clk 0:00:06.9]} 38... axb5 {[%clk 0:00:25.8]} 39. Kh2
{[%clk 0:00:06.1]} 39... d3 {[%clk 0:00:25.2]} 40. Bd6 {[%clk 0:00:04.9]} 40...
Nd4 {[%clk 0:00:24.9]} 0-1

[Event "*** SCC Grand Prix: Titled Tuesday Blitz"]
[Site "Chess.com"]
[Date "2020.06.09"]
[Round "3"]
[White "IriBu"]
[Black "Bulldog167"]
[Result "1/2-1/2"]
[WhiteElo "2534"]
[BlackElo "2775"]
[TimeControl "180+1"]
[EndTime "9:29:01 PDT"]
[Termination "Game drawn by repetition"]

1. e4 {[%clk 0:03:00.9]} 1... e6 {[%clk 0:02:51.8]} 2. d4 {[%clk 0:02:59.7]}
2... d5 {[%clk 0:02:52.4]} 3. Nc3 {[%clk 0:02:58.9]} 3... Bb4 {[%clk 0:02:52.5]}
4. e5 {[%clk 0:02:56.8]} 4... c5 {[%clk 0:02:52.6]} 5. Bd2 {[%clk 0:02:55.2]}
5... Ne7 {[%clk 0:02:52.4]} 6. a3 {[%clk 0:02:54.6]} 6... Bxc3 {[%clk
0:02:52.3]} 7. Bxc3 {[%clk 0:02:54.8]} 7... b6 {[%clk 0:02:51.3]} 8. Qg4 {[%clk
0:02:47.7]} 8... O-O {[%clk 0:02:45.6]} 9. Nf3 {[%clk 0:02:37.1]} 9... Ba6
{[%clk 0:02:38.7]} 10. O-O-O {[%clk 0:02:26.7]} 10... Bxf1 {[%clk 0:02:37.7]}
11. Rhxf1 {[%clk 0:02:20.4]} 11... Nbc6 {[%clk 0:02:37.9]} 12. Rd3 {[%clk
0:01:57.6]} 12... Nf5 {[%clk 0:02:29.1]} 13. Qh3 {[%clk 0:01:40.4]} 13... Rc8
{[%clk 0:01:57.7]} 14. dxc5 {[%clk 0:01:29]} 14... bxc5 {[%clk 0:01:58.6]} 15.
g4 {[%clk 0:01:28.7]} 15... Nfe7 {[%clk 0:01:58.6]} 16. Ng5 {[%clk 0:01:06.4]}
16... h6 {[%clk 0:01:58.4]} 17. f4 {[%clk 0:01:06.2]} 17... Ng6 {[%clk
0:01:37.8]} 18. Kb1 {[%clk 0:00:46.8]} 18... Nxf4 {[%clk 0:01:20.5]} 19. Rxf4
{[%clk 0:00:41.1]} 19... Qxg5 {[%clk 0:01:21]} 20. Rdf3 {[%clk 0:00:28.4]} 20...
d4 {[%clk 0:00:55.8]} 21. Bd2 {[%clk 0:00:27.8]} 21... Nxe5 {[%clk 0:00:52.2]}
22. Rf2 {[%clk 0:00:21.7]} 22... Nc4 {[%clk 0:00:49.2]} 23. Bc1 {[%clk 0:00:21]}
23... Qg6 {[%clk 0:00:46.6]} 24. b3 {[%clk 0:00:18.5]} 24... Rb8 {[%clk
0:00:43.5]} 25. g5 {[%clk 0:00:13.7]} 25... Ne3 {[%clk 0:00:42]} 26. gxh6 {[%clk
0:00:11.4]} 26... Rxb3+ {[%clk 0:00:40.1]} 27. Ka2 {[%clk 0:00:11.8]} 27... Rc3
{[%clk 0:00:35.4]} 28. hxg7 {[%clk 0:00:07.6]} 28... Kxg7 {[%clk 0:00:25.3]} 29.
Bxe3 {[%clk 0:00:07.2]} 29... Rxc2+ {[%clk 0:00:18.4]} 30. Rxc2 {[%clk
0:00:06.5]} 30... Qxc2+ {[%clk 0:00:18]} 31. Ka1 {[%clk 0:00:06.8]} 31... Qc3+
{[%clk 0:00:17.6]} 32. Ka2 {[%clk 0:00:06.6]} 32... Qc2+ {[%clk 0:00:08.8]} 33.
Ka1 {[%clk 0:00:06.8]} 33... Qd1+ {[%clk 0:00:06.5]} 34. Ka2 {[%clk 0:00:07.2]}
34... Qe2+ {[%clk 0:00:06.9]} 35. Ka1 {[%clk 0:00:07.6]} 35... Qe1+ {[%clk
0:00:06.8]} 36. Ka2 {[%clk 0:00:07.3]} 36... Qe2+ {[%clk 0:00:06.6]} 37. Ka1
{[%clk 0:00:07.7]} 37... Qe1+ {[%clk 0:00:06.6]} 38. Ka2 {[%clk 0:00:08.2]}
38... Qe2+ {[%clk 0:00:06.8]} 1/2-1/2

[Event "*** SCC Grand Prix: Titled Tuesday Blitz"]
[Site "Chess.com"]
[Date "2020.06.09"]
[Round "3"]
[White "Vandros57"]
[Black "ketster"]
[Result "0-1"]
[WhiteElo "2251"]
[BlackElo "2452"]
[TimeControl "180+1"]
[EndTime "9:29:01 PDT"]
[Termination "ketster won on time"]

1. d4 {[%clk 0:03:00.9]} 1... Nf6 {[%clk 0:02:59.7]} 2. Nf3 {[%clk 0:02:59.7]}
2... d5 {[%clk 0:02:59.3]} 3. c4 {[%clk 0:02:58.7]} 3... e6 {[%clk 0:02:58.6]}
4. Nc3 {[%clk 0:02:57.6]} 4... dxc4 {[%clk 0:02:58.4]} 5. e3 {[%clk 0:02:56.6]}
5... a6 {[%clk 0:02:57.4]} 6. Bxc4 {[%clk 0:02:55.4]} 6... b5 {[%clk 0:02:57.1]}
7. Bb3 {[%clk 0:02:51.3]} 7... Bb7 {[%clk 0:02:55]} 8. O-O {[%clk 0:02:50.1]}
8... Nbd7 {[%clk 0:02:49.4]} 9. Qe2 {[%clk 0:02:48.4]} 9... c5 {[%clk
0:02:46.4]} 10. dxc5 {[%clk 0:02:46.3]} 10... Bxc5 {[%clk 0:02:44.6]} 11. Rd1
{[%clk 0:02:35.4]} 11... Qe7 {[%clk 0:02:40.3]} 12. h3 {[%clk 0:02:32.8]} 12...
O-O {[%clk 0:02:35.3]} 13. Bd2 {[%clk 0:02:32.1]} 13... Rfd8 {[%clk 0:02:26]}
14. Be1 {[%clk 0:02:31.4]} 14... Rac8 {[%clk 0:02:22.7]} 15. Rac1 {[%clk
0:02:29.8]} 15... Nb6 {[%clk 0:02:18.8]} 16. a3 {[%clk 0:02:22.2]} 16... Nbd5
{[%clk 0:02:15.8]} 17. Nxd5 {[%clk 0:02:19.8]} 17... Nxd5 {[%clk 0:02:13.1]} 18.
Ba2 {[%clk 0:02:06.9]} 18... Qf6 {[%clk 0:02:09.1]} 19. Ba5 {[%clk 0:01:39.1]}
19... Re8 {[%clk 0:02:04.6]} 20. Bc3 {[%clk 0:01:37.1]} 20... Nxc3 {[%clk
0:02:02.8]} 21. Rxc3 {[%clk 0:01:36.4]} 21... Bb6 {[%clk 0:01:27.8]} 22. Rxc8
{[%clk 0:01:20.7]} 22... Rxc8 {[%clk 0:01:27.2]} 23. b4 {[%clk 0:01:14]} 23...
h6 {[%clk 0:01:22.4]} 24. Nd4 {[%clk 0:01:10.3]} 24... Qg6 {[%clk 0:01:16.4]}
25. f3 {[%clk 0:01:06.4]} 25... Bxd4 {[%clk 0:01:09.5]} 26. Rxd4 {[%clk
0:01:00.2]} 26... Rc2 {[%clk 0:01:08.8]} 27. Rd2 {[%clk 0:00:59.4]} 27... Bxf3
{[%clk 0:00:56.4]} 28. Rxc2 {[%clk 0:00:43.1]} 28... Bxe2 {[%clk 0:00:54.8]} 29.
Rxe2 {[%clk 0:00:43.1]} 29... Qe4 {[%clk 0:00:53.2]} 30. Kf2 {[%clk 0:00:35.3]}
30... Qd3 {[%clk 0:00:53]} 31. e4 {[%clk 0:00:19.9]} 31... Qxa3 {[%clk
0:00:51.7]} 32. Bb1 {[%clk 0:00:16.4]} 32... Qxb4 {[%clk 0:00:50.3]} 33. e5
{[%clk 0:00:11.7]} 33... a5 {[%clk 0:00:48.1]} 34. Bd3 {[%clk 0:00:07.8]} 34...
g6 {[%clk 0:00:45.6]} 35. g3 {[%clk 0:00:05.9]} 35... a4 {[%clk 0:00:45.4]} 36.
h4 {[%clk 0:00:05.6]} 36... a3 {[%clk 0:00:42]} 37. h5 {[%clk 0:00:05.6]} 37...
Kg7 {[%clk 0:00:40.9]} 38. hxg6 {[%clk 0:00:05.2]} 38... fxg6 {[%clk 0:00:40.7]}
39. Rc2 {[%clk 0:00:05]} 39... Qd4+ {[%clk 0:00:39.3]} 40. Ke2 {[%clk
0:00:03.2]} 40... Qxe5+ {[%clk 0:00:38.9]} 41. Kd2 {[%clk 0:00:03.3]} 41... b4
{[%clk 0:00:37.2]} 42. Rc4 {[%clk 0:00:02.1]} 42... a2 {[%clk 0:00:31.7]} 0-1

[Event "*** SCC Grand Prix: Titled Tuesday Blitz"]
[Site "Chess.com"]
[Date "2020.06.09"]
[Round "3"]
[White "awesomevishesh"]
[Black "iaraldinho"]
[Result "0-1"]
[WhiteElo "2419"]
[BlackElo "2627"]
[TimeControl "180+1"]
[EndTime "9:29:04 PDT"]
[Termination "iaraldinho won by resignation"]

1. d4 {[%clk 0:03:00.9]} 1... f5 {[%clk 0:02:26.4]} 2. Nf3 {[%clk 0:02:59.8]}
2... Nf6 {[%clk 0:02:26.3]} 3. g3 {[%clk 0:02:59.7]} 3... g6 {[%clk 0:02:26.6]}
4. Bg2 {[%clk 0:02:59.5]} 4... Bg7 {[%clk 0:02:27]} 5. O-O {[%clk 0:02:59.2]}
5... O-O {[%clk 0:02:27]} 6. b3 {[%clk 0:02:59.1]} 6... d6 {[%clk 0:02:27.3]} 7.
Bb2 {[%clk 0:02:58.9]} 7... e5 {[%clk 0:02:27.7]} 8. dxe5 {[%clk 0:02:45.9]}
8... Ng4 {[%clk 0:02:26.6]} 9. c4 {[%clk 0:02:35.4]} 9... Nc6 {[%clk 0:02:25.2]}
10. h3 {[%clk 0:02:05.1]} 10... Ngxe5 {[%clk 0:02:17.5]} 11. Qd2 {[%clk
0:01:46.8]} 11... f4 {[%clk 0:02:01.9]} 12. Nc3 {[%clk 0:01:36]} 12... Nxf3+
{[%clk 0:01:59.3]} 13. exf3 {[%clk 0:01:28.6]} 13... Nd4 {[%clk 0:01:47.7]} 14.
Nd5 {[%clk 0:01:17.6]} 14... Ne6 {[%clk 0:01:26]} 15. Rae1 {[%clk 0:01:07.9]}
15... Bxb2 {[%clk 0:01:21.1]} 16. Qxb2 {[%clk 0:01:07.5]} 16... c6 {[%clk
0:01:21.4]} 17. Nc3 {[%clk 0:00:57.2]} 17... Qf6 {[%clk 0:01:15.3]} 18. Qd2
{[%clk 0:00:47.3]} 18... Qd4 {[%clk 0:01:08.7]} 19. Rd1 {[%clk 0:00:25.6]} 19...
c5 {[%clk 0:00:58.8]} 20. Nb5 {[%clk 0:00:21.2]} 20... Qxd2 {[%clk 0:00:52.4]}
21. Rxd2 {[%clk 0:00:22.1]} 21... a6 {[%clk 0:00:51.4]} 22. Nxd6 {[%clk
0:00:20.2]} 22... Nd4 {[%clk 0:00:51]} 23. Ne4 {[%clk 0:00:17.4]} 23... b6
{[%clk 0:00:45.6]} 24. g4 {[%clk 0:00:09.3]} 24... Bb7 {[%clk 0:00:42.8]} 25.
Re1 {[%clk 0:00:08.1]} 25... h6 {[%clk 0:00:42.2]} 26. b4 {[%clk 0:00:06.5]}
26... Bxe4 {[%clk 0:00:37.9]} 27. Rxe4 {[%clk 0:00:06.1]} 27... g5 {[%clk
0:00:38.3]} 28. bxc5 {[%clk 0:00:05.9]} 28... bxc5 {[%clk 0:00:38.5]} 29. Rexd4
{[%clk 0:00:04.3]} 29... cxd4 {[%clk 0:00:38.1]} 30. Rxd4 {[%clk 0:00:05.2]}
30... Rfd8 {[%clk 0:00:38.3]} 31. Re4 {[%clk 0:00:03.9]} 31... Re8 {[%clk
0:00:38.2]} 32. c5 {[%clk 0:00:02.2]} 32... Rxe4 {[%clk 0:00:37]} 33. fxe4
{[%clk 0:00:02.4]} 33... Rc8 {[%clk 0:00:37.9]} 34. e5 {[%clk 0:00:01.9]} 34...
Rxc5 {[%clk 0:00:37.7]} 35. e6 {[%clk 0:00:02.5]} 35... Kf8 {[%clk 0:00:37.4]}
36. Be4 {[%clk 0:00:02.7]} 36... Ke7 {[%clk 0:00:36.9]} 37. Bf5 {[%clk
0:00:02.4]} 37... Ra5 {[%clk 0:00:37]} 38. Kg2 {[%clk 0:00:02.2]} 38... Rxa2
{[%clk 0:00:34.7]} 39. h4 {[%clk 0:00:02.4]} 39... Rb2 {[%clk 0:00:33.5]} 40.
hxg5 {[%clk 0:00:02.8]} 40... hxg5 {[%clk 0:00:32.6]} 41. Kf3 {[%clk 0:00:03.1]}
41... a5 {[%clk 0:00:32.8]} 42. Ke4 {[%clk 0:00:02.9]} 42... a4 {[%clk 0:00:33]}
0-1

[Event "*** SCC Grand Prix: Titled Tuesday Blitz"]
[Site "Chess.com"]
[Date "2020.06.09"]
[Round "3"]
[White "guillembaches"]
[Black "Man-Chuk"]
[Result "0-1"]
[WhiteElo "2489"]
[BlackElo "2762"]
[TimeControl "180+1"]
[EndTime "9:29:09 PDT"]
[Termination "Man-Chuk won on time"]

1. e4 {[%clk 0:03:00.9]} 1... e5 {[%clk 0:02:59.8]} 2. Nf3 {[%clk 0:03:00.9]}
2... Nc6 {[%clk 0:03:00.2]} 3. Nc3 {[%clk 0:03:01.2]} 3... Nf6 {[%clk
0:02:56.6]} 4. d4 {[%clk 0:03:01.2]} 4... exd4 {[%clk 0:02:57.5]} 5. Nxd4 {[%clk
0:03:01.6]} 5... Bb4 {[%clk 0:02:57.6]} 6. Nxc6 {[%clk 0:03:01.9]} 6... bxc6
{[%clk 0:02:58.5]} 7. Bd3 {[%clk 0:03:02]} 7... O-O {[%clk 0:02:58.1]} 8. O-O
{[%clk 0:03:01.9]} 8... d5 {[%clk 0:02:58.2]} 9. Bd2 {[%clk 0:03:02.1]} 9... Bg4
{[%clk 0:02:40.9]} 10. Qc1 {[%clk 0:03:00.6]} 10... Rb8 {[%clk 0:02:22]} 11. Re1
{[%clk 0:02:51]} 11... Re8 {[%clk 0:02:08]} 12. a3 {[%clk 0:02:37.5]} 12... Bf8
{[%clk 0:02:03.8]} 13. exd5 {[%clk 0:02:24.1]} 13... cxd5 {[%clk 0:01:55.5]} 14.
Rxe8 {[%clk 0:02:19.5]} 14... Qxe8 {[%clk 0:01:46.2]} 15. Bg5 {[%clk 0:02:11.3]}
15... Qe6 {[%clk 0:01:40.2]} 16. Qf4 {[%clk 0:02:03]} 16... Bd6 {[%clk 0:01:37]}
17. Qc1 {[%clk 0:01:42.8]} 17... Qe5 {[%clk 0:01:29.1]} 18. g3 {[%clk
0:01:28.1]} 18... Bf3 {[%clk 0:01:21.4]} 19. Bf4 {[%clk 0:01:13.9]} 19... Qe6
{[%clk 0:01:18.4]} 20. Bxd6 {[%clk 0:01:11]} 20... Qxd6 {[%clk 0:01:19.3]} 21.
Nb5 {[%clk 0:00:59.6]} 21... Qe5 {[%clk 0:01:08.2]} 22. Qe3 {[%clk 0:00:27.9]}
22... Qxe3 {[%clk 0:00:54.3]} 23. fxe3 {[%clk 0:00:28.8]} 23... Rb7 {[%clk
0:00:48.3]} 24. Nd4 {[%clk 0:00:24.9]} 24... Be4 {[%clk 0:00:48.2]} 25. b4
{[%clk 0:00:25]} 25... g6 {[%clk 0:00:39]} 26. h3 {[%clk 0:00:22.7]} 26... Rb8
{[%clk 0:00:28.9]} 27. Rf1 {[%clk 0:00:20.1]} 27... Kg7 {[%clk 0:00:28]} 28. g4
{[%clk 0:00:20.4]} 28... h6 {[%clk 0:00:26.3]} 29. Kf2 {[%clk 0:00:20.3]} 29...
Re8 {[%clk 0:00:22.7]} 30. Rb1 {[%clk 0:00:19.4]} 30... Nd7 {[%clk 0:00:19.5]}
31. a4 {[%clk 0:00:15.9]} 31... c5 {[%clk 0:00:16]} 32. bxc5 {[%clk 0:00:12]}
32... Nxc5 {[%clk 0:00:16.9]} 33. Bb5 {[%clk 0:00:12]} 33... Rc8 {[%clk
0:00:13.7]} 34. Bc6 {[%clk 0:00:11.7]} 34... Ne6 {[%clk 0:00:09.9]} 35. Bb7
{[%clk 0:00:07.6]} 35... Rc7 {[%clk 0:00:07.4]} 36. Nc6 {[%clk 0:00:03.3]} 36...
d4 {[%clk 0:00:06.4]} 0-1

[Event "*** SCC Grand Prix: Titled Tuesday Blitz"]
[Site "Chess.com"]
[Date "2020.06.09"]
[Round "3"]
[White "shineatchess"]
[Black "Tsyhanchuk_Stanislav"]
[Result "0-1"]
[WhiteElo "2197"]
[BlackElo "2417"]
[TimeControl "180+1"]
[EndTime "9:29:10 PDT"]
[Termination "Tsyhanchuk_Stanislav won on time"]

1. e4 {[%clk 0:03:00.9]} 1... c5 {[%clk 0:02:58.7]} 2. Nf3 {[%clk 0:03:00.4]}
2... Nc6 {[%clk 0:02:59]} 3. Bb5 {[%clk 0:02:59.6]} 3... Qb6 {[%clk 0:02:57.9]}
4. Nc3 {[%clk 0:02:55.6]} 4... e6 {[%clk 0:02:57.4]} 5. O-O {[%clk 0:02:49.7]}
5... a6 {[%clk 0:02:54.5]} 6. Bxc6 {[%clk 0:02:42.3]} 6... Qxc6 {[%clk
0:02:55.4]} 7. d3 {[%clk 0:02:36.9]} 7... Ne7 {[%clk 0:02:42.1]} 8. a4 {[%clk
0:02:36.1]} 8... Ng6 {[%clk 0:02:36.8]} 9. a5 {[%clk 0:02:29.8]} 9... d6 {[%clk
0:02:32.5]} 10. Na4 {[%clk 0:02:25.1]} 10... Bd7 {[%clk 0:02:27]} 11. Nb6 {[%clk
0:02:24.1]} 11... Rd8 {[%clk 0:02:26.7]} 12. Bg5 {[%clk 0:02:11.1]} 12... Be7
{[%clk 0:02:25.9]} 13. Bxe7 {[%clk 0:02:10.4]} 13... Nxe7 {[%clk 0:02:25.7]} 14.
Re1 {[%clk 0:02:03]} 14... e5 {[%clk 0:02:19.1]} 15. Nxd7 {[%clk 0:02:01.9]}
15... Rxd7 {[%clk 0:02:17.2]} 16. Nd2 {[%clk 0:01:52.9]} 16... O-O {[%clk
0:02:13.6]} 17. Nc4 {[%clk 0:01:52.7]} 17... f5 {[%clk 0:02:13]} 18. Qd2 {[%clk
0:01:32]} 18... f4 {[%clk 0:01:51.7]} 19. f3 {[%clk 0:01:30.8]} 19... Rf6 {[%clk
0:01:51.8]} 20. b4 {[%clk 0:01:19.1]} 20... Ng6 {[%clk 0:01:44.8]} 21. Nb6
{[%clk 0:01:12.7]} 21... Rd8 {[%clk 0:01:37.6]} 22. Nd5 {[%clk 0:01:12.6]} 22...
Rf7 {[%clk 0:01:37.4]} 23. bxc5 {[%clk 0:00:51.4]} 23... Qxc5+ {[%clk 0:01:32]}
24. Kh1 {[%clk 0:00:50.7]} 24... Ne7 {[%clk 0:01:31.5]} 25. c4 {[%clk
0:00:43.5]} 25... Nc6 {[%clk 0:01:19.4]} 26. Reb1 {[%clk 0:00:41.2]} 26... Nd4
{[%clk 0:01:16.3]} 27. Qb4 {[%clk 0:00:34]} 27... Rc8 {[%clk 0:00:49.5]} 28.
Qxc5 {[%clk 0:00:27]} 28... Rxc5 {[%clk 0:00:50.4]} 29. Rb6 {[%clk 0:00:25.4]}
29... Rd7 {[%clk 0:00:44.8]} 30. h3 {[%clk 0:00:20.8]} 30... h5 {[%clk
0:00:43.3]} 31. Rab1 {[%clk 0:00:19.2]} 31... Rxa5 {[%clk 0:00:42.1]} 32. Rxb7
{[%clk 0:00:19.4]} 32... Rxb7 {[%clk 0:00:42.2]} 33. Rxb7 {[%clk 0:00:19.2]}
33... Ra1+ {[%clk 0:00:40.8]} 34. Kh2 {[%clk 0:00:18.6]} 34... Ne2 {[%clk
0:00:41.7]} 35. g4 {[%clk 0:00:11.7]} 35... hxg4 {[%clk 0:00:38.2]} 36. hxg4
{[%clk 0:00:10.1]} 36... Nd4 {[%clk 0:00:38.7]} 37. Kg2 {[%clk 0:00:05.3]} 37...
Ra2+ {[%clk 0:00:38.9]} 38. Kh3 {[%clk 0:00:04.2]} 38... Nxf3 {[%clk 0:00:38.6]}
39. g5 {[%clk 0:00:04.2]} 39... Nxg5+ {[%clk 0:00:38.7]} 40. Kg4 {[%clk
0:00:04.3]} 40... Rg2+ {[%clk 0:00:39]} 41. Kf5 {[%clk 0:00:04.4]} 41... f3
{[%clk 0:00:39.3]} 42. Rb8+ {[%clk 0:00:03.5]} 42... Kh7 {[%clk 0:00:39.1]} 43.
Ne7 {[%clk 0:00:02.4]} 43... f2 {[%clk 0:00:38.4]} 0-1